lending/lending_fUSD_20260310
["ID","MTS","AMOUNT","RATE_DAILY","PERIOD"]
[408096667,1773142243857,-291.85050319,0.00019945,4]
[408096668,1773142243866,-224.84696038,0.00019945,4]
[408096669,1773142243877,-185.35967391,0.00019945,4]
[408096670,1773142243887,-244.14256808,0.00019945,4]
[408096671,1773142243896,-208.44724416,0.00019945,4]
[408096672,1773142243905,-500.0,0.00019966,2]
[408096673,1773142243914,-999.65,0.00019968,2]
[408096674,1773142243923,-999.65,0.00019968,2]
[408096675,1773142243933,-999.65,0.00019968,2]
[408096676,1773142243942,-1375.75863429,0.00019968,2]
[408096677,1773142243955,-544.76136571,0.00019968,2]
[408096678,1773142243964,-482.47587774,0.00019968,2]
[408096679,1773142245483,-509.38,0.00016451,2]
[408096680,1773142245493,-509.38,0.00017893,2]
[408096681,1773142245502,-509.38,0.00019335,2]
[408096682,1773142245512,-1438.04412226,0.00019968,2]
[408096683,1773142245522,-1920.52,0.00019968,2]
[408096684,1773142245531,-1920.52,0.00019968,2]
[408096685,1773142245540,-3669.55146341,0.00019969,2]
[408096686,1773142245550,-5006.91,0.00019969,2]
[408096687,1773142245560,-5006.91,0.00019969,2]
[408096688,1773142245569,-5006.91,0.00019969,2]
[408096689,1773142245579,-5006.91,0.00019969,2]
[408096690,1773142245590,-5006.91,0.00019969,2]
[408096691,1773142245601,-500.0,0.00019969,2]
[408096692,1773142245610,-500.0,0.00019969,2]
[408096693,1773142245619,-500.0,0.00019969,2]
[408096694,1773142245628,-500.0,0.00019969,2]
[408096695,1773142245637,-500.0,0.00019969,2]
[408096696,1773142245646,-500.0,0.00019969,2]
[408096697,1773142245655,-500.0,0.00019969,2]
[408096698,1773142245664,-500.0,0.00019969,2]
[408096699,1773142245673,-500.0,0.00019969,2]
[408096700,1773142245683,-500.0,0.00019969,2]
[408096701,1773142245692,-500.0,0.00019969,2]
[408096702,1773142245702,-500.0,0.00019969,2]
[408096703,1773142245711,-500.0,0.00019969,2]
[408096704,1773142245720,-603.7702149,0.00019969,2]
[408096705,1773142245731,-2083.33,0.00019969,2]
[408096706,1773142245741,-2083.33,0.00019969,2]
[408096707,1773142245750,-2083.33,0.00019969,2]
[408096709,1773142245759,-2083.33,0.00019969,2]
[408096710,1773142245768,-2083.33,0.00019969,2]
[408096711,1773142245777,-2083.33,0.00019969,2]
[408096712,1773142245786,-2083.33,0.00019969,2]
[408096713,1773142245795,-2083.33,0.00019969,2]
[408096714,1773142245808,-2083.33,0.00019969,2]
[408096715,1773142245817,-2083.33,0.00019969,2]
[408096716,1773142245826,-2083.33,0.00019969,2]
[408096717,1773142245835,-2083.33,0.00019969,2]
[408096718,1773142245845,-2083.33,0.00019969,2]
[408096719,1773142245854,-653.74,0.00019969,2]
[408096720,1773142245863,-653.74,0.00019969,2]
[408096721,1773142245873,-653.74,0.00019969,2]
[408096722,1773142245883,-653.74,0.00019969,2]
[408096723,1773142245892,-653.74,0.00019969,2]
[408096724,1773142245902,-653.74,0.00019969,2]
[408096725,1773142245911,-653.74,0.00019969,2]
[408096726,1773142245921,-653.74,0.00019969,2]
[408096727,1773142245930,-653.74,0.00019969,2]
[408096728,1773142245939,-653.74,0.00019969,2]
[408096729,1773142245948,-653.74,0.00019969,2]
[408096730,1773142245958,-500.0,0.00019969,2]
[408096731,1773142245967,-500.0,0.00019969,2]
[408096732,1773142245976,-500.0,0.00019969,2]
[408096733,1773142245985,-500.0,0.00019969,2]
[408096734,1773142245995,-500.0,0.00019969,2]
[408096735,1773142246005,-500.0,0.00019969,2]
[408096736,1773142246014,-500.0,0.00019969,2]
[408096737,1773142246024,-500.0,0.00019969,2]
[408096738,1773142246033,-2562.54,0.00019969,2]
[408096739,1773142246044,-2562.54,0.00019969,2]
[408096740,1773142246054,-2562.54,0.00019969,2]
[408096741,1773142246065,-2562.54,0.00019969,2]
[408096742,1773142246075,-2562.54,0.00019969,2]
[408096743,1773142246087,-2562.54,0.00019969,2]
[408096744,1773142246097,-2562.54,0.00019969,2]
[408096745,1773142246107,-2562.54,0.00019969,2]
[408096746,1773142246116,-2562.54,0.00019969,2]
[408096747,1773142246126,-2562.54,0.00019969,2]
[408096748,1773142246137,-2562.54,0.00019969,2]
[408096749,1773142246147,-2562.54,0.00019969,2]
[408096750,1773142246157,-4899.9,0.00019969,2]
[408096751,1773142246166,-4899.9,0.00019969,2]
[408096752,1773142246175,-4899.9,0.00019969,2]
[408096753,1773142246184,-4899.9,0.00019969,2]
[408096754,1773142246194,-4899.9,0.00019969,2]
[408096755,1773142246203,-4899.9,0.00019969,2]
[408096756,1773142246213,-4899.9,0.00019969,2]
[408096757,1773142246223,-4899.9,0.00019969,2]
[408096758,1773142246232,-4899.9,0.00019969,2]
[408096759,1773142246241,-4899.9,0.00019969,2]
[408096760,1773142246250,-4899.9,0.00019969,2]
[408096761,1773142246259,-4899.9,0.00019969,2]
[408096762,1773142246269,-1105.76,0.00019969,2]
[408096763,1773142246279,-1105.76,0.00019969,2]
[408096764,1773142246288,-1105.76,0.00019969,2]
[408096765,1773142246297,-1105.76,0.00019969,2]
[408096766,1773142246306,-1105.76,0.00019969,2]
[408096767,1773142246315,-1105.76,0.00019969,2]
[408096768,1773142246324,-1105.76,0.00019969,2]
[408096769,1773142246334,-1105.76,0.00019969,2]
[408096770,1773142246343,-1105.76,0.00019969,2]
[408096771,1773142246352,-1105.76,0.00019969,2]
[408096772,1773142246362,-1105.76,0.00019969,2]
[408096773,1773142246372,-267.10275387,0.00019969,2]
[408096774,1773142246381,-597.93,0.00019969,2]
[408096775,1773142246391,-154.12241087,0.00019969,2]
[408096777,1773142336757,500.0,9.157e-05,2]
[408096778,1773142339577,500.0,9.157e-05,2]
[408096779,1773142346916,500.0,9.157e-05,2]
[408096780,1773142348519,500.0,9.157e-05,2]
[408096781,1773142349038,845.31124181,9.157e-05,2]
[408096785,1773142636958,851.22563087,9.157e-05,2]
[408096786,1773142637921,677.2376309,9.157e-05,2]
[408096787,1773142640977,500.0,9.157e-05,2]
[408096788,1773142645879,500.0,9.157e-05,2]
[408096789,1773142646374,500.0,9.157e-05,2]
[408096790,1773142654189,709.3557087,9.157e-05,2]
[408096974,1773143403655,267.0,0.00014157,2]
[408096978,1773143431585,-153.0,0.00014157,2]
[408096979,1773143431595,-153.0,0.00014157,2]
[408096980,1773143431604,-153.0,0.00014157,2]
[408096981,1773143431613,-153.0,0.00014157,2]
[408096982,1773143431623,-153.0,0.00014157,2]
[408096983,1773143431632,-153.0,0.00014157,2]
[408096984,1773143431641,-607.61277218,0.00014493,2]
[408096985,1773143431650,-2018.99,0.0001483,2]
[408096986,1773143431659,-547.34509597,0.00014868,2]
[408096987,1773143431670,-652.65490403,0.00014868,2]
[408096988,1773143431680,-500.0,0.00014869,2]
[408096989,1773143431689,-150.0,0.00014998,2]
[408096990,1773143431698,-500.0,0.00014999,2]
[408096991,1773143431707,-500.0,0.00014999,2]
[408096992,1773143431716,-500.0,0.00014999,2]
[408096993,1773143431726,-500.80509207,0.00014999,2]
[408096994,1773143431735,-397.91001567,0.00014999,2]
[408096995,1773143431750,-102.08998433,0.00014999,2]
[408096996,1773143431759,-500.0,0.00014999,2]
[408096997,1773143431769,-385.86537567,0.00014999,2]
[408096998,1773143431780,-114.13462433,0.00014999,2]
[408096999,1773143431789,-500.0,0.00014999,2]
[408097000,1773143431798,-255.53108399,0.00014999,2]
[408097001,1773143431809,-244.46891601,0.00014999,2]
[408097002,1773143431818,-538.91556338,0.00014999,2]
[408097003,1773143431827,-63.0771825,0.00014999,2]
[408097004,1773143431838,-491.9228175,0.00014999,2]
[408097006,1773143431847,-250.0,0.00015,2]
[408097008,1773143431856,-555.0,0.00015,2]
[408097010,1773143431865,-500.0,0.00015,30]
[408097012,1773143431875,-1.69955609,0.00015,30]
[408097014,1773143431886,-498.30044391,0.00015,30]
[408097016,1773143431895,-500.0,0.00015,30]
[408097018,1773143431904,-500.0,0.00015,30]
[408097020,1773143431913,-500.0,0.00015,30]
[408097022,1773143431922,-500.0,0.00015,30]
[408097024,1773143431931,-500.0,0.00015,30]
[408097026,1773143431940,-500.0,0.00015,30]
[408097028,1773143431949,-505.32807387,0.00015,30]
[408097030,1773143431958,-750.0,0.00015,30]
[408097032,1773143431968,-500.0,0.00015,30]
[408097034,1773143431977,-500.0,0.00015,30]
[408097036,1773143431986,-507.10985848,0.00015,30]
[408097038,1773143431996,-555.0,0.00015084,2]
[408097040,1773143432006,-555.0,0.00015084,2]
[408097041,1773143432015,-255.0,0.00015084,2]
[408097042,1773143432024,-153.0,0.00015085,3]
[408097043,1773143432033,-55046.19445701,0.000155,2]
[408097044,1773143432042,-555.0,0.000155,2]
[408097045,1773143432051,-500.0,0.0001554,2]
[408097046,1773143432062,-500.0,0.0001554,2]
[408097047,1773143432071,-500.0,0.0001554,2]
[408097048,1773143432080,-500.0,0.0001554,2]
[408097049,1773143432089,-500.0,0.0001554,2]
[408097050,1773143432098,-514.75306544,0.0001554,2]
[408097051,1773143432107,-500.0,0.0001554,2]
[408097052,1773143432116,-555.0,0.0001554,2]
[408097053,1773143432125,-600.0,0.00015573,2]
[408097054,1773143432135,-555.0,0.00015673,2]
[408097055,1773143432147,-164.05452,0.00015673,7]
[408097056,1773143432156,-310.0,0.00015932,2]
[408097057,1773143432166,-153.0,0.00016072,3]
[408097058,1773143432175,-255.0,0.00016123,2]
[408097059,1773143432186,-500.0,0.00016313,2]
[408097060,1773143432195,-194.57847078,0.00016313,2]
[408097061,1773143432205,-431.06188293,0.00016313,2]
[408097062,1773143432215,-300.0,0.00016313,2]
[408097063,1773143432224,-1680.0,0.00016354,2]
[408097064,1773143432233,-708.09,0.00016438,2]
[408097065,1773143432242,-558.0,0.00016438,2]
[408097066,1773143432251,-224.0,0.00016494,2]
[408097067,1773143432260,-1852.42,0.0001659,2]
[408097068,1773143432269,-268.96748512,0.00016712,2]
[408097069,1773143432278,-166.34,0.00016712,2]
[408097070,1773143432287,-300.0,0.00017,2]
[408097071,1773143432296,-508.0,0.00017,2]
[408097072,1773143432305,-153.0,0.0001706,3]
[408097073,1773143432314,-500.0,0.00017109,2]
[408097074,1773143432323,-500.0,0.00017109,2]
[408097075,1773143432332,-500.0,0.00017109,2]
[408097076,1773143432343,-708.09,0.00017109,2]
[408097077,1773143432352,-360.919945,0.00017118,7]
[408097078,1773143432363,-217.49,0.00017311,2]
[408097079,1773143432372,-433.0,0.00017338,2]
[408097080,1773143432383,-3173.57426313,0.00017369,2]
[408097081,1773143432392,-19324.53,0.0001737,2]
[408097082,1773143432401,-150.0,0.00017373,2]
[408097083,1773143432411,-544.12,0.00017405,2]
[408097084,1773143432420,-150.0,0.00017505,2]
[408097085,1773143432430,-200.0,0.00017752,2]
[408097086,1773143432440,-166.66,0.00017775,2]
[408097087,1773143432450,-337.5,0.0001796,2]
[408097088,1773143432459,-2351.0,0.0001799,2]
[408097089,1773143432471,-5264.65,0.00018018,2]
[408097090,1773143432481,-153.0,0.00018048,3]
[408097091,1773143432490,-544.12,0.00018275,2]
[408097092,1773143432499,-500.0,0.00018325,7]
[408097093,1773143432509,-500.0,0.00018325,7]
[408097094,1773143432518,-600.0,0.00018325,7]
[408097095,1773143432527,-166.66,0.00018362,2]
[408097096,1773143432537,-500.0,0.00018411,7]
[408097097,1773143432547,-485.33,0.00018523,3]
[408097098,1773143432556,-647.70803243,0.00018532,2]
[408097099,1773143432565,-6741.33,0.00018533,2]
[408097100,1773143432574,-150.99,0.00018533,2]
[408097101,1773143432584,-6594.12,0.00018533,2]
[408097102,1773143432594,-9999.99,0.00018533,2]
[408097103,1773143432604,-7995.06,0.00018533,2]
[408097104,1773143432615,-299.99,0.00018533,4]
[408097105,1773143432625,-17930.59,0.00018533,2]
[408097106,1773143432635,-508.0,0.00018537,3]
[408097107,1773143432644,-500.0,0.00018685,7]
[408097108,1773143432655,-500.0,0.00018767,2]
[408097109,1773143432666,-282.87,0.00018787,2]
[408097110,1773143432675,-300.0,0.000188,6]
[408097111,1773143432686,-205.06815,0.00018808,7]
[408097112,1773143432695,-200.0,0.00018832,2]
[408097113,1773143432704,-151.0,0.00018832,2]
[408097114,1773143432714,-151.0,0.00018832,2]
[408097115,1773143432724,-151.0,0.00018832,2]
[408097116,1773143432733,-151.0,0.00018832,2]
[408097117,1773143432742,-151.0,0.00018832,2]
[408097118,1773143432752,-151.0,0.00018832,2]
[408097119,1773143432761,-151.0,0.00018832,2]
[408097120,1773143432771,-151.0,0.00018832,2]
[408097121,1773143432780,-497.00011978,0.00018838,2]
[408097122,1773143432790,-496.98,0.00018838,2]
[408097123,1773143432800,-486.82,0.00018838,2]
[408097124,1773143432809,-13308.81,0.00018843,2]
[408097125,1773143432818,-700.0,0.000189,6]
[408097126,1773143432827,-1000.0,0.00018923,2]
[408097127,1773143432836,-500.0,0.00018923,2]
[408097128,1773143432846,-151.0,0.00018923,2]
[408097129,1773143432855,-199.07364582,0.00018923,2]
[408097130,1773143432865,-174.61919141,0.00018923,2]
[408097131,1773143432874,-200.0,0.00018923,2]
[408097132,1773143432884,-869.39421668,0.00018923,2]
[408097133,1773143432894,-262.90206542,0.00018923,2]
[408097134,1773143432903,-166.66,0.00018949,2]
[408097135,1773143432912,-500.0,0.00018959,7]
[408097136,1773143432922,-11387.78,0.00018976,2]
[408097137,1773143432932,-151.0,0.00018978,2]
[408097138,1773143432942,-151.0,0.00019033,2]
[408097139,1773143432951,-153.0,0.00019036,3]
[408097140,1773143432962,-151.0,0.00019088,2]
[408097141,1773143432972,-168.0,0.00019115,2]
[408097142,1773143432981,-151.0,0.00019143,2]
[408097143,1773143432991,-544.12,0.00019145,2]
[408097144,1773143433002,-500.0,0.00019177,2]
[408097145,1773143433013,-332.13413626,0.00019177,2]
[408097146,1773143433024,-708.09,0.00019177,2]
[408097147,1773143433034,-787.0,0.00019178,2]
[408097148,1773143433044,-151.0,0.00019198,2]
[408097149,1773143433055,-2000.0,0.000192,2]
[408097150,1773143433065,-486.82,0.00019219,2]
[408097151,1773143433075,-1919.0254,0.00019221,2]
[408097152,1773143433086,-2153.1141,0.00019221,2]
[408097153,1773143433095,-1771.36272261,0.00019221,2]
[408097154,1773143433108,-728.63727739,0.00019221,2]
[408097155,1773143433118,-642.59336037,0.00019228,2]
[408097156,1773143433128,-500.0,0.00019233,7]
[408097157,1773143433139,-338.33487706,0.00019238,2]
[408097158,1773143433153,-343.22158602,0.00019238,2]
[408097162,1773143437768,-466.21354254,0.00019238,2]
[408097163,1773143437872,-4114.55393509,0.00019238,2]
[408097164,1773143437882,-151.0,0.00019253,2]
[408097165,1773143437891,-642.59336037,0.000193,2]
[408097166,1773143437901,-1600.43,0.00019309,2]
[408097167,1773143437910,-7337.80051062,0.00019309,2]
[408097171,1773143439910,-333.81892786,0.00019309,2]
[408097172,1773143440175,-7670.47645087,0.00019309,2]
[408097173,1773143440187,-346.63,0.00019311,2]
[408097174,1773143440196,-346.63,0.00019311,2]
[408097175,1773143440205,-346.63,0.00019311,2]
[408097176,1773143440218,-346.63,0.00019311,2]
[408097177,1773143440227,-346.63,0.00019311,2]
[408097178,1773143440236,-500.0,0.00019313,2]
[408097179,1773143440245,-1600.43,0.0001932,2]
[408097180,1773143440255,-1600.43,0.0001932,2]
[408097181,1773143440264,-1600.43,0.0001932,2]
[408097182,1773143440272,-1600.43,0.0001932,2]
[408097183,1773143440281,-629.54684847,0.0001932,2]
[408097184,1773143440289,-212.50549133,0.0001932,2]
[408097185,1773143440298,-433550.61984833,0.00019321,2]
[408097232,1773143442993,-138166.18359393,0.00019321,2]
[408097233,1773143443045,-680.76275655,0.00019321,2]
[408097234,1773143443057,-1337.79988137,0.00019321,2]
[408097235,1773143443069,-7582.53723145,0.00019321,2]
[408097236,1773143443081,-878.76438659,0.00019321,2]
[408097276,1773143445731,-423.40184853,0.00019321,2]
[408097277,1773143445743,-1123.71239335,0.00019321,2]
[408097278,1773143445753,-431.885,0.00019321,2]
[408097279,1773143445888,-949.65,0.00019321,2]
[408097280,1773143445945,-359.69059197,0.00019321,2]
[408097281,1773143445956,-1826.56410682,0.00019321,2]
[408097282,1773143446077,-14126.15409567,0.00019321,2]
[408097304,1773143514574,4733.01,0.00014157,2]
[408097305,1773143527153,158.0,0.00014157,2]
[408097306,1773143585403,158.0,0.00014157,2]
[408097307,1773143622464,-586.13,0.00014157,2]
[408097308,1773143771093,161.76,8.906e-05,2]
[408097309,1773143771309,161.76,9.797e-05,2]
[408097310,1773143771504,161.76,0.00010687,2]
[408097311,1773143771733,161.76,0.00011578,2]
[408097312,1773143771954,161.76,0.00012468,2]
[408097313,1773143772153,161.76,0.00013359,2]
[408097315,1773143796144,552.81073262,0.00014157,2]
[408097316,1773143832616,157.6,0.00013999,2]
[408097317,1773143994018,1881.87305274,0.0001199,2]
[408097319,1773144003165,264.90621464,0.00014157,2]
[408097320,1773144003188,2.09378536,0.00014157,2]
[408097324,1773144105813,3393.9260322,0.00013,15]
[408097325,1773144134617,1603.99018244,0.00014,5]
[408097326,1773144134639,3929.00981756,0.00014,5]
[408097327,1773144137384,518.84676166,0.00014157,2]
[408097328,1773144137432,200.0,0.00014157,2]
[408097329,1773144138928,151.0,0.00014157,2]
[408097330,1773144139564,151.0,0.00014157,2]
[408097331,1773144140205,50.15342078,0.00014157,2]
[408097332,1773144140228,100.84657922,0.00014157,2]
[408097333,1773144140918,151.0,0.00014157,2]
[408097334,1773144141529,151.0,0.00014157,2]
[408097335,1773144141559,-157.0,0.00014157,2]
[408097336,1773144142143,151.0,0.00014157,2]
[408097337,1773144142734,151.0,0.00014157,2]
[408097338,1773144143321,151.0,0.00014157,2]
[408097339,1773144143927,151.0,0.00014157,2]
[408097340,1773144145175,151.0,0.00014157,2]
[408097341,1773144145249,151.0,0.00014157,2]
[408097342,1773144145762,151.0,0.00014157,2]
[408097345,1773144155040,3629.01,9.5e-05,3]
[408097346,1773144155062,2594.73434348,9.5e-05,3]
[408097347,1773144156464,151.0,0.00014157,2]
[408097348,1773144156514,151.0,0.00014157,2]
[408097349,1773144156937,151.0,0.00014157,2]
[408097350,1773144157599,151.0,0.00014157,2]
[408097351,1773144158254,151.0,0.00014157,2]
[408097352,1773144158869,151.0,0.00014157,2]
[408097353,1773144159476,151.0,0.00014157,2]
[408097354,1773144160085,151.0,0.00014157,2]
[408097355,1773144160720,151.0,0.00014157,2]
[408097356,1773144161355,151.0,0.00014157,2]
[408097357,1773144161981,151.0,0.00014157,2]
[408097358,1773144165438,744.27565652,0.00014,5]
[408097359,1773144165459,4788.72434348,0.00014,5]
[408097360,1773144166011,211.28565652,0.000137,3]
[408097361,1773144166033,1615.71434348,0.000137,3]
[408097362,1773144187246,157.0,0.00014157,2]
[408097363,1773144191760,159.0,0.00014157,2]
[408097364,1773144246886,157.0,0.00014157,2]
[408097365,1773144307531,158.0,0.00014157,2]
[408097367,1773144367602,158.0,0.00014157,2]
[408097368,1773144427401,158.0,0.00014157,2]
[408097369,1773144450888,901.4919708,9.157e-05,2]
[408097404,1773144485518,158.0,0.00014157,2]
[408097405,1773144551300,158.0,0.00014157,2]
[408097481,1773144629625,1579.04408164,0.0002,120]
[408097487,1773144631747,-158.0,0.00014157,2]
[408097489,1773144631757,-161.76,0.0001425,2]
[408097490,1773144631766,-268.0,0.0001425,2]
[408097491,1773144631776,-148.14085166,0.00014454,2]
[408097492,1773144631802,-380.61742386,0.00014454,2]
[408097493,1773144631812,-175.58095835,0.00014658,2]
[408097494,1773144631823,-304.16591188,0.00014658,2]
[408097495,1773144631833,-773.09035507,0.00014658,2]
[408097496,1773144631842,-888.0,0.00014999,2]
[408097497,1773144631853,-210.0,0.00014999,2]
[408097498,1773144631862,-1200.0,0.00014999,2]
[408097499,1773144631871,-500.0,0.00015,30]
[408097500,1773144631881,-500.0,0.00015,30]
[408097501,1773144631890,-500.0,0.00015,30]
[408097502,1773144631900,-500.0,0.00015,30]
[408097503,1773144631911,-500.0,0.00015,30]
[408097504,1773144631920,-161.76,0.0001514,2]
[408097505,1773144631929,-154.02623414,0.00015624,2]
[408097506,1773144631939,-600.0,0.00015675,2]
[408097507,1773144631948,-1746.48,0.00015675,2]
[408097508,1773144631957,-2251.82004778,0.00015807,2]
[408097509,1773144631967,-1474.85876419,0.00015848,2]
[408097511,1773144631976,-500.0,0.00015918,2]
[408097513,1773144631985,-161.76,0.00016031,2]
[408097514,1773144631994,-158.0,0.00016118,3]
[408097516,1773144632003,-908.78118322,0.00016122,2]
[408097517,1773144632012,-500.0,0.00016122,2]
[408097518,1773144632022,-5000.0036297,0.000162,5]
[408097519,1773144632032,-500.0,0.0001646,2]
[408097520,1773144632042,-378.965942,0.00016473,7]
[408097521,1773144632051,-1680.0,0.00016499,2]
[408097522,1773144632061,-3143.45,0.00016507,2]
[408097523,1773144632070,-1500.0,0.00016507,2]
[408097524,1773144632079,-500.0,0.00016822,2]
[408097525,1773144632088,-2000.0,0.00016909,2]
[408097526,1773144632098,-499.0,0.00016909,2]
[408097527,1773144632107,-151.0,0.00016912,2]
[408097528,1773144632116,-151.0,0.00016912,2]
[408097529,1773144632126,-151.0,0.00016912,2]
[408097530,1773144632135,-151.0,0.00016912,2]
[408097531,1773144632144,-161.76,0.00016921,2]
[408097532,1773144632156,-299.99,0.00016922,4]
[408097533,1773144632166,-9999.99,0.00016922,2]
[408097534,1773144632175,-41644.7,0.00016922,2]
[408097535,1773144632184,-9999.99,0.00016922,2]
[408097536,1773144632193,-150.99,0.00016922,2]
[408097537,1773144632203,-1118.11,0.00016922,2]
[408097538,1773144632213,-2111.35,0.00016922,2]
[408097539,1773144632222,-999.99,0.00016922,2]
[408097540,1773144632232,-675.7,0.00016931,2]
[408097541,1773144632241,-508.0,0.00017,2]
[408097542,1773144632250,-508.0,0.00017,2]
[408097543,1773144632260,-500.0,0.00017073,2]
[408097544,1773144632269,-700.2571846,0.00017073,2]
[408097545,1773144632278,-2176.62717332,0.00017288,2]
[408097546,1773144632288,-166.66,0.0001734,2]
[408097547,1773144632297,-675.7,0.00017354,2]
[408097548,1773144632306,-200.0,0.00017413,2]
[408097549,1773144632316,-166.66,0.00017705,2]
[408097550,1773144632325,-675.7,0.00017777,2]
[408097551,1773144632334,-161.76,0.00017812,2]
[408097552,1773144632344,-1337.81549621,0.00017879,2]
[408097553,1773144632353,-166.66,0.0001807,2]
[408097554,1773144632362,-158.0,0.00018078,3]
[408097555,1773144632372,-551.0,0.00018137,2]
[408097556,1773144632382,-2351.0,0.00018149,2]
[408097557,1773144632391,-675.7,0.000182,2]
[408097558,1773144632400,-2000.0,0.00018253,2]
[408097559,1773144632410,-1600.0,0.0001829,2]
[408097560,1773144632419,-308.76967837,0.00018321,2]
[408097561,1773144632429,-500.0,0.00018325,7]
[408097562,1773144632438,-500.0,0.00018325,7]
[408097563,1773144632447,-500.0,0.00018325,7]
[408097564,1773144632457,-500.0,0.00018411,7]
[408097565,1773144632469,-166.66,0.00018435,2]
[408097566,1773144632479,-26077.53318134,0.00018473,2]
[408097567,1773144632488,-24516.98364012,0.000185,10]
[408097568,1773144632498,-9999.99,0.00018533,2]
[408097569,1773144632510,-2500.0,0.00018535,2]
[408097570,1773144632520,-6342.0,0.00018547,2]
[408097571,1773144632530,-4734.29313655,0.00018573,2]
[408097572,1773144632541,-514.07468835,0.00018573,2]
[408097573,1773144632553,-300.0,0.000186,6]
[408097574,1773144632563,-508.0,0.00018615,3]
[408097575,1773144632573,-675.7,0.00018624,2]
[408097576,1773144632582,-1207.56,0.00018625,2]
[408097577,1773144632591,-1207.56,0.00018625,2]
[408097578,1773144632600,-1207.56,0.00018625,2]
[408097579,1773144632610,-1207.56,0.00018625,2]
[408097580,1773144632619,-1207.56,0.00018625,2]
[408097581,1773144632628,-600.6,0.00018625,2]
[408097582,1773144632637,-600.6,0.00018625,2]
[408097583,1773144632647,-26077.5331813,0.00018628,2]
[408097584,1773144632656,-150.0,0.0001863,2]
[408097585,1773144632666,-212.50549133,0.00018634,2]
[408097586,1773144632675,-629.54684847,0.00018634,2]
[408097587,1773144632685,-540.0,0.00018635,2]
[408097588,1773144632694,-2274466.06732221,0.00018635,2]
[408097589,1773144633739,-1246.48,0.00018635,2]
[408097590,1773144633750,-985.4185,0.00018635,2]
[408097591,1773144633761,-2046.24,0.00018635,2]
[408097592,1773144633776,-78522.94594396,0.00018635,2]
[408097593,1773144633792,-3455.00000014,0.00018635,2]
[408097597,1773144637851,-123303.43124596,0.00018635,2]
[408097598,1773144637862,-5018.84606289,0.00018635,2]
[408097599,1773144637906,-2381.6089235,0.00018635,2]
[408097600,1773144637917,-1374.14,0.00018635,2]
[408097601,1773144637965,-1364.88945289,0.00018635,2]
[408097602,1773144637976,-1554.53461667,0.00018635,2]
[408097603,1773144638018,-451.15504761,0.00018635,2]
[408097631,1773144640277,-3829.24288417,0.00018635,2]
[408097632,1773144640287,-500.0,0.00018673,2]
[408097633,1773144640296,-500.0,0.00018673,2]
[408097634,1773144640306,-500.0,0.00018673,2]
[408097635,1773144640316,-500.0,0.00018673,2]
[408097636,1773144640325,-500.0,0.00018673,2]
[408097637,1773144640334,-500.0,0.00018673,2]
[408097638,1773144640343,-500.0,0.00018673,2]
[408097639,1773144640353,-500.0,0.00018673,2]
[408097640,1773144640362,-500.0,0.00018673,2]
[408097641,1773144640371,-500.0,0.00018685,7]
[408097642,1773144640380,-600.0,0.000187,6]
[408097643,1773144640389,-514.07468829,0.00018717,2]